{"text_format":"1","workbook":"xlsx","n_sheets":5,"sheets":["メイン","長さ・直径別","コード別","樹種別","日付・月別"],"not_rendered":{"charts":0,"images":0,"macros":1,"external_links":0,"defined_names":5,"comments":0,"pivot_tables":0},"unopened":[],"bounds":{"document_bytes":16777216,"sheet_cells":100000,"rows_first":2000,"rows_last":500,"rows_between":2000,"halvings":0,"cell_chars":16384,"cell_head_chars":4096},"cells_cut":0,"cells_raw":0,"read":"whole","date_system":"1900"}

{"sheet":"メイン","index":0,"n_rows":17,"n_cols":12,"rows_kept":17,"cut":false,"hidden":false,"merged":[[13,5,13,6],[13,3,13,4],[0,4,0,6]]}
[null,null,null,null,"規格長さ特例設定(cm)"]
[null,null,null,"優先順位","以上","未満","結果"]
[null,null,null,1,190,200,190]
[null,null,null,2,210,220,210]
[null,null,null,3,270,280,270]
[null,null,null,4,330,340,330]
[null,null,null,5,365,380,365]
[null,null,null,6,430,440,430]
[null,null,null,7,0,0,0]
[null,null,null,8,0,0,0]
[null,null,null,9,0,0,0]
[null,null,null,10,0,0,0]
[]
[null,null,null,"規格長さ標準設定",null,"規格直径設定",null,null,"本数",null,null,"本"]
[null,null,null,20,"cm刻み",14,"cm以上から2cm刻み",null,"素材材積合計",null,null,"m3"]
[null,null,null,null,null,null,null,null,"規格材積合計",null,null,"m3"]
[null,null,null,null,null,null,null,null,"材積計算用合計",null,null,"m3"]

{"sheet":"長さ・直径別","index":1,"n_rows":3,"n_cols":6,"rows_kept":3,"cut":false,"hidden":false,"merged":[[2,3,2,4],[1,3,1,4]]}
[]
[null,"総合計","本数",null,null,"本"]
[null,null,"材積",null,null,"m3"]

{"sheet":"コード別","index":2,"n_rows":19,"n_cols":10,"rows_kept":19,"cut":false,"hidden":false,"merged":[[0,1,0,3]]}
[]
[null,"コード","本数","材積(㎥)","単価","売上金額",null,"合計本数","合計材積(㎥)","合計金額"]
[null,"A-1",null,null,null,{"$f":" D3*E3","v":0},null,{"$f":"SUM(C3:C19)","v":0},{"$f":"SUM(D3:D19)","v":0},{"$f":"SUM(F3:F19)","v":0}]
[null,"A-2",null,null,null,{"$f":" D4*E4","v":0}]
[null,"A-3",null,null,null,0]
[null,"A-4",null,null,null,0]
[null,"B-1",null,null,null,0]
[null,"B-2",null,null,null,0]
[null,"B-3",null,null,null,0]
[null,"B-4",null,null,null,0]
[null,"C-1",null,null,null,0]
[null,"C-2",null,null,null,0]
[null,"C-3",null,null,null,0]
[null,"C-4",null,null,null,0]
[null,"D-1",null,null,null,0]
[null,"D-2",null,null,null,0]
[null,"D-3",null,null,null,0]
[null,"D-4",null,null,null,0]
[null,null,null,null,null,0]

{"sheet":"樹種別","index":3,"n_rows":2,"n_cols":7,"rows_kept":2,"cut":false,"hidden":false,"merged":[]}
[]
[null,"樹種","本数","材積(㎥)",null,"合計本数","合計材積(㎥)"]

{"sheet":"日付・月別","index":4,"n_rows":2,"n_cols":11,"rows_kept":2,"cut":false,"hidden":false,"merged":[]}
[]
[null,"日付別","本数","材積(㎥)",null,"月別","本数","材積(㎥)",null,"合計本数","合計材積(㎥)"]